{"text_format":"3","workbook":"xlsx","n_sheets":1,"sheets":["Bản đề xuất"],"not_rendered":{"images":1,"defined_names":20},"read":"whole","date_system":"1900"}

{"sheet":"Bản đề xuất","index":0,"n_rows":39,"n_cols":7,"rows_kept":39,"merged":[[0,1,3,1],[0,3,0,6],[1,4,1,6],[2,4,2,6],[32,3,35,4],[36,3,36,6],[37,3,37,5],[38,3,38,5]]}
[{"$nulls":3},"BẢN ĐỀ XUẤT XÂY DỰNG"]
[{"$nulls":3},"Tên công ty","| Nhập địa chỉ đường của công ty vào ô này"]
[{"$nulls":3},"Điện thoại","| Nhập số fax và địa chỉ email liên hệ của công ty vào ô này"]
[{"$nulls":3},"SỐ LƯỢNG","MÔ TẢ","ĐƠN GIÁ","SỐ TIỀN"]
[null,"KHÁCH HÀNG",null,10,"Mục 1",{"v":165,"d":"165.00 ₫"},{"$f":"IFERROR(Mục_dòng[[#This Row],[SỐ LƯỢNG]]*Mục_dòng[[#This Row],[ĐƠN GIÁ]], \"\")","v":{"v":1650,"d":"1,650.00 ₫"}}]
[null,"Nhập Tên khách hàng vào ô này",null,21,"Mục 2",{"v":40,"d":"40.00 ₫"},{"$f":"IFERROR(Mục_dòng[[#This Row],[SỐ LƯỢNG]]*Mục_dòng[[#This Row],[ĐƠN GIÁ]], \"\")","v":{"v":840,"d":"840.00 ₫"}}]
[null,"SỐ DỰ TOÁN",null,5,"Mục 3",{"v":10.5,"d":"10.50 ₫"},{"$f":"IFERROR(Mục_dòng[[#This Row],[SỐ LƯỢNG]]*Mục_dòng[[#This Row],[ĐƠN GIÁ]], \"\")","v":{"v":52.5,"d":"52.50 ₫"}}]
[null,"C-1234",null,164,"Mục 4",{"v":2.75,"d":"2.75 ₫"},{"$f":"IFERROR(Mục_dòng[[#This Row],[SỐ LƯỢNG]]*Mục_dòng[[#This Row],[ĐƠN GIÁ]], \"\")","v":{"v":451,"d":"451.00 ₫"}}]
[null,"NGÀY",null,6,"Mục 5",{"v":12,"d":"12.00 ₫"},{"$f":"IFERROR(Mục_dòng[[#This Row],[SỐ LƯỢNG]]*Mục_dòng[[#This Row],[ĐƠN GIÁ]], \"\")","v":{"v":72,"d":"72.00 ₫"}}]
[null,{"$f":"TODAY()","v":"2018-11-19"},null,18,"Mục 6",{"v":5.5,"d":"5.50 ₫"},{"$f":"IFERROR(Mục_dòng[[#This Row],[SỐ LƯỢNG]]*Mục_dòng[[#This Row],[ĐƠN GIÁ]], \"\")","v":{"v":99,"d":"99.00 ₫"}}]
[null,"ĐỊA CHỈ",null,1,"Mục 7",{"v":25,"d":"25.00 ₫"},{"$f":"IFERROR(Mục_dòng[[#This Row],[SỐ LƯỢNG]]*Mục_dòng[[#This Row],[ĐƠN GIÁ]], \"\")","v":{"v":25,"d":"25.00 ₫"}}]
[null,"Nhập Địa chỉ đường của khách hàng vào ô này",{"$nulls":4},{"$f":"IFERROR(Mục_dòng[[#This Row],[SỐ LƯỢNG]]*Mục_dòng[[#This Row],[ĐƠN GIÁ]], \"\")","v":{"v":0,"d":"0.00 ₫"}}]
[null,"THÀNH PHỐ/TIỂU BANG/MÃ ZIP",{"$nulls":4},{"$f":"IFERROR(Mục_dòng[[#This Row],[SỐ LƯỢNG]]*Mục_dòng[[#This Row],[ĐƠN GIÁ]], \"\")","v":{"v":0,"d":"0.00 ₫"}}]
[null,"Nhập Thành phố, Tiểu bang và Mã Zip của khách hàng vào ô này",{"$nulls":4},{"$f":"IFERROR(Mục_dòng[[#This Row],[SỐ LƯỢNG]]*Mục_dòng[[#This Row],[ĐƠN GIÁ]], \"\")","v":{"v":0,"d":"0.00 ₫"}}]
[null,"ĐIỆN THOẠI",{"$nulls":4},{"$f":"IFERROR(Mục_dòng[[#This Row],[SỐ LƯỢNG]]*Mục_dòng[[#This Row],[ĐƠN GIÁ]], \"\")","v":{"v":0,"d":"0.00 ₫"}}]
[null,"Nhập Số điện thoại của khách hàng vào ô này",{"$nulls":4},{"$f":"IFERROR(Mục_dòng[[#This Row],[SỐ LƯỢNG]]*Mục_dòng[[#This Row],[ĐƠN GIÁ]], \"\")","v":{"v":0,"d":"0.00 ₫"}}]
[null,"EMAIL",{"$nulls":4},{"$f":"IFERROR(Mục_dòng[[#This Row],[SỐ LƯỢNG]]*Mục_dòng[[#This Row],[ĐƠN GIÁ]], \"\")","v":{"v":0,"d":"0.00 ₫"}}]
[null,"Nhập Địa chỉ email của khách hàng vào ô này",{"$nulls":4},{"$f":"IFERROR(Mục_dòng[[#This Row],[SỐ LƯỢNG]]*Mục_dòng[[#This Row],[ĐƠN GIÁ]], \"\")","v":{"v":0,"d":"0.00 ₫"}}]
[null,"NHÂN VIÊN BÁN HÀNG",{"$nulls":4},{"$f":"IFERROR(Mục_dòng[[#This Row],[SỐ LƯỢNG]]*Mục_dòng[[#This Row],[ĐƠN GIÁ]], \"\")","v":{"v":0,"d":"0.00 ₫"}}]
[null,"Nhập Nhân viên bán hàng vào ô này",{"$nulls":4},{"$f":"IFERROR(Mục_dòng[[#This Row],[SỐ LƯỢNG]]*Mục_dòng[[#This Row],[ĐƠN GIÁ]], \"\")","v":{"v":0,"d":"0.00 ₫"}}]
[null,"DỰ ÁN",{"$nulls":4},{"$f":"IFERROR(Mục_dòng[[#This Row],[SỐ LƯỢNG]]*Mục_dòng[[#This Row],[ĐƠN GIÁ]], \"\")","v":{"v":0,"d":"0.00 ₫"}}]
[null,"Nhập Tên dự án vào ô này",{"$nulls":4},{"$f":"IFERROR(Mục_dòng[[#This Row],[SỐ LƯỢNG]]*Mục_dòng[[#This Row],[ĐƠN GIÁ]], \"\")","v":{"v":0,"d":"0.00 ₫"}}]
[null,"NGƯỜI LẬP:",{"$nulls":4},{"$f":"IFERROR(Mục_dòng[[#This Row],[SỐ LƯỢNG]]*Mục_dòng[[#This Row],[ĐƠN GIÁ]], \"\")","v":{"v":0,"d":"0.00 ₫"}}]
[null,"Nhập Tên người lập vào ô này",{"$nulls":4},{"$f":"IFERROR(Mục_dòng[[#This Row],[SỐ LƯỢNG]]*Mục_dòng[[#This Row],[ĐƠN GIÁ]], \"\")","v":{"v":0,"d":"0.00 ₫"}}]
[null,"NGƯỜI NHẬN",{"$nulls":4},{"$f":"IFERROR(Mục_dòng[[#This Row],[SỐ LƯỢNG]]*Mục_dòng[[#This Row],[ĐƠN GIÁ]], \"\")","v":{"v":0,"d":"0.00 ₫"}}]
[null,"Nhập tên người nhận bản đề xuất vào ô này",{"$nulls":4},{"$f":"IFERROR(Mục_dòng[[#This Row],[SỐ LƯỢNG]]*Mục_dòng[[#This Row],[ĐƠN GIÁ]], \"\")","v":{"v":0,"d":"0.00 ₫"}}]
[null,"ĐIỀU KHOẢN THANH TOÁN",{"$nulls":4},{"$f":"IFERROR(Mục_dòng[[#This Row],[SỐ LƯỢNG]]*Mục_dòng[[#This Row],[ĐƠN GIÁ]], \"\")","v":{"v":0,"d":"0.00 ₫"}}]
[null,"Thanh toán đầy đủ trong vòng 30 ngày",{"$nulls":4},{"$f":"IFERROR(Mục_dòng[[#This Row],[SỐ LƯỢNG]]*Mục_dòng[[#This Row],[ĐƠN GIÁ]], \"\")","v":{"v":0,"d":"0.00 ₫"}}]
[null,"NGÀY ĐẾN HẠN",{"$nulls":4},{"$f":"IFERROR(Mục_dòng[[#This Row],[SỐ LƯỢNG]]*Mục_dòng[[#This Row],[ĐƠN GIÁ]], \"\")","v":{"v":0,"d":"0.00 ₫"}}]
[null,{"$f":"TODAY()+30","v":"2018-12-19"},{"$nulls":4},{"$f":"IFERROR(Mục_dòng[[#This Row],[SỐ LƯỢNG]]*Mục_dòng[[#This Row],[ĐƠN GIÁ]], \"\")","v":{"v":0,"d":"0.00 ₫"}}]
[{"$nulls":5},"TỔNG PHỤ",{"$f":"SUBTOTAL(109,Mục_dòng[SỐ TIỀN])","v":{"v":3189.5,"d":"3,189.50 ₫"}}]
[{"$nulls":3},"BẢN ĐỀ XUẤT NÀY BAO GỒM CÁC ĐIỀU KIỆN ĐƯỢC GHI CHÚ:",null,"THUẾ SUẤT ",{"v":0.0775,"d":"7.75%"}]
[{"$nulls":3},"Nhập các điều kiện vào đây",null,"THUẾ DOANH THU ",{"$f":"IFERROR(Tổng_phụ*Thuế_suất, \"\")","v":{"v":247.18625,"d":"247.19 ₫"}}]
[{"$nulls":5},"KHÁC "]
[{"$nulls":5},"TỔNG ",{"$f":"IFERROR(Tổng_phụ+G33+Khác, \"\")","v":{"v":3436.68625,"d":"3,436.69 ₫"}}]
[]
[{"$nulls":3},"Ký vào bên dưới để chấp nhận báo giá:"]
[]
[{"$nulls":3},"Người đại diện được ủy quyền",null,null,"Ngày"]